[Event "Nordstansblixten 2025"]
[Site "Nordstan, Göteborg, Sweden"]
[Date "2025.05.10"]
[Round "1.2"]
[White "Karlsson, Stefan"]
[Black "Molokov, Andrey"]
[Result "1-0"]
[TimeControl "3 minutes + 2 seconds per move from move one"]
[WhiteFideId "1771183"]
[BlackFideId "1780450"]
[WhiteElo "2128"]
[BlackElo "1592"]

1. d3 {[%clk 00:03:02]} {[%emt 00:00:01]} c5 {[%clk 00:03:02]} {[%emt
00:00:02]} 2. Nd2 {[%clk 00:03:02]} {[%emt 00:00:02]} Nc6 {[%clk 00:03:03]} 3.
Ngf3 {[%clk 00:03:00]} {[%emt 00:00:03]} g6 {[%clk 00:03:03]} {[%emt 00:00:02]}
4. g3 {[%clk 00:03:00]} {[%emt 00:00:02]} Bg7 {[%clk 00:03:04]} {[%emt
00:00:02]} 5. Bg2 {[%clk 00:03:01]} e6 {[%clk 00:03:04]} {[%emt 00:00:02]} 6.
O-O {[%clk 00:02:54]} {[%emt 00:00:09]} Nge7 {[%clk 00:03:04]} {[%emt
00:00:02]} 7. e4 {[%clk 00:02:49]} {[%emt 00:00:07]} O-O {[%clk 00:03:03]}
{[%emt 00:00:04]} 8. c3 {[%clk 00:02:43]} {[%emt 00:00:08]} d5 {[%clk
00:02:58]} {[%emt 00:00:07]} 9. a4 {[%clk 00:02:30]} {[%emt 00:00:14]} a6
{[%clk 00:02:20]} {[%emt 00:00:40]} 10. Re1 {[%clk 00:02:13]} {[%emt 00:00:19]}
Bd7 {[%clk 00:02:07]} {[%emt 00:00:16]} 11. Nb3 {[%clk 00:01:57]} {[%emt
00:00:17]} c4 {[%clk 00:01:47]} {[%emt 00:00:23]} 12. dxc4 {[%clk 00:01:51]}
{[%emt 00:00:07]} dxc4 {[%clk 00:01:48]} {[%emt 00:00:01]} 13. Nbd2 {[%clk
00:01:29]} {[%emt 00:00:24]} b5 {[%clk 00:01:30]} {[%emt 00:00:20]} 14. axb5
{[%clk 00:01:24]} {[%emt 00:00:06]} axb5 {[%clk 00:01:30]} {[%emt 00:00:02]} 15.
Rxa8 {[%clk 00:01:25]} Qxa8 {[%clk 00:01:31]} {[%emt 00:00:02]} 16. Nxc4 {[%clk
00:01:16]} {[%emt 00:00:11]} bxc4 {[%clk 00:01:03]} {[%emt 00:00:29]} 17. Qxd7
{[%clk 00:01:17]} Rd8 {[%clk 00:01:04]} {[%emt 00:00:01]} 18. Qc7 {[%clk
00:01:12]} {[%emt 00:00:06]} Qb8 {[%emt 00:00:54]} 19. Qxb8 {[%clk 00:01:04]}
{[%emt 00:00:07]} Rxb8 {[%clk 00:00:17]} 20. Rd1 {[%clk 00:00:54]} {[%emt
00:00:12]} 1-0

[Event "Nordstansblixten 2025"]
[Site "Nordstan, Göteborg, Sweden"]
[Date "2025.05.10"]
[Round "1.4"]
[White "Buzleta, Patrik"]
[Black "Vijayshankar, Kathir Nilavan"]
[Result "1-0"]
[TimeControl "3 minutes + 2 seconds per move from move one"]
[WhiteFideId "1755463"]
[BlackFideId "1790030"]
[WhiteElo "1950"]
[BlackElo "1556"]

1. Nf3 {[%clk 00:03:03]} {[%emt 00:00:01]} g6 {[%clk 00:03:03]} {[%emt
00:00:01]} 2. Nc3 {[%clk 00:03:04]} {[%emt 00:00:01]} Bg7 {[%clk 00:03:04]} 3.
b3 {[%clk 00:03:03]} {[%emt 00:00:03]} d6 {[%clk 00:03:05]} 4. Bb2 {[%clk
00:03:04]} c5 {[%clk 00:03:05]} {[%emt 00:00:02]} 5. Qc1 {[%clk 00:03:05]} Bg4
{[%clk 00:03:05]} {[%emt 00:00:02]} 6. Ng1 {[%clk 00:02:59]} {[%emt 00:00:08]}
Nc6 {[%clk 00:03:02]} {[%emt 00:00:05]} 7. h3 {[%clk 00:03:00]} Bf5 {[%clk
00:02:59]} {[%emt 00:00:05]} 8. Nf3 {[%clk 00:02:48]} {[%emt 00:00:14]} Nf6
{[%clk 00:02:59]} {[%emt 00:00:02]} 9. g4 {[%clk 00:02:49]} Be4 {[%clk
00:02:53]} {[%emt 00:00:08]} 10. Nxe4 {[%clk 00:02:45]} {[%emt 00:00:05]} Nxe4
{[%clk 00:02:37]} {[%emt 00:00:19]} 11. Bxg7 {[%clk 00:02:46]} Rg8 {[%clk
00:02:38]} {[%emt 00:00:02]} 12. Bb2 {[%clk 00:02:43]} {[%emt 00:00:04]} Qa5
{[%clk 00:02:33]} {[%emt 00:00:08]} 13. Bg2 {[%clk 00:02:30]} {[%emt 00:00:13]}
Qb6 {[%clk 00:02:26]} {[%emt 00:00:10]} 14. O-O {[%clk 00:02:01]} {[%emt
00:00:31]} Nd4 {[%clk 00:02:20]} {[%emt 00:00:09]} 15. Nxd4 {[%clk 00:01:55]}
{[%emt 00:00:09]} Nxf2 {[%clk 00:02:02]} {[%emt 00:00:19]} 16. Rxf2 {[%clk
00:01:42]} {[%emt 00:00:14]} cxd4 {[%clk 00:02:03]} {[%emt 00:00:02]} 17. d3
{[%clk 00:01:41]} {[%emt 00:00:03]} Rc8 {[%clk 00:02:00]} {[%emt 00:00:05]} 18.
Qf4 {[%clk 00:01:37]} {[%emt 00:00:04]} Rf8 {[%clk 00:01:57]} {[%emt 00:00:06]}
19. Rc1 {[%clk 00:01:36]} {[%emt 00:00:03]} e5 {[%clk 00:01:54]} {[%emt
00:00:05]} 20. Qe4 {[%clk 00:01:35]} {[%emt 00:00:02]} Qa6 {[%clk 00:01:49]}
{[%emt 00:00:08]} 21. a3 {[%clk 00:01:31]} {[%emt 00:00:06]} b5 {[%clk
00:01:36]} {[%emt 00:00:14]} 22. Qb7 {[%clk 00:01:05]} {[%emt 00:00:28]} Qxb7
{[%clk 00:01:33]} {[%emt 00:00:05]} 23. Bxb7 {[%clk 00:01:07]} {[%emt
00:00:01]} Rb8 {[%clk 00:01:33]} {[%emt 00:00:02]} 24. Bc6+ {[%clk 00:01:07]}
{[%emt 00:00:02]} Ke7 {[%clk 00:01:34]} {[%emt 00:00:02]} 25. g5 {[%clk
00:00:51]} {[%emt 00:00:17]} b4 {[%clk 00:01:29]} {[%emt 00:00:07]} 26. a4
{[%clk 00:00:53]} f5 {[%clk 00:01:26]} {[%emt 00:00:05]} 27. gxf6+ {[%clk
00:00:53]} {[%emt 00:00:01]} Rxf6 {[%clk 00:01:25]} {[%emt 00:00:03]} 28. Rxf6
{[%clk 00:00:54]} Kxf6 {[%clk 00:01:25]} 29. Rf1+ {[%clk 00:00:54]} Kg5 {[%clk
00:01:24]} {[%emt 00:00:05]} 30. Bc1+ {[%clk 00:00:54]} {[%emt 00:00:05]} Kh4
{[%clk 00:01:24]} {[%emt 00:00:02]} 31. Kg2 {[%clk 00:00:52]} {[%emt 00:00:04]}
Rc8 {[%clk 00:01:24]} {[%emt 00:00:03]} 32. Bd7 {[%clk 00:00:26]} {[%emt
00:00:27]} Rxc2 {[%clk 00:01:23]} {[%emt 00:00:02]} 33. Be6 {[%clk 00:00:28]}
{[%emt 00:00:01]} Rxe2+ {[%clk 00:01:15]} {[%emt 00:00:11]} 34. Kf3 {[%clk
00:00:29]} Rc2 {[%clk 00:01:07]} {[%emt 00:00:10]} 35. Bg8 {[%clk 00:00:30]}
{[%emt 00:00:02]} Rc3 {[%clk 00:01:03]} {[%emt 00:00:06]} 36. Ke4 {[%clk
00:00:30]} Kxh3 {[%clk 00:00:58]} {[%emt 00:00:07]} 37. Bxh7 {[%clk 00:00:29]}
{[%emt 00:00:04]} g5 {[%clk 00:00:57]} {[%emt 00:00:02]} 38. Bf5+ {[%clk
00:00:30]} {[%emt 00:00:01]} Kh4 {[%clk 00:00:58]} 39. Rg1 {[%clk 00:00:28]}
{[%emt 00:00:05]} Rxb3 {[%clk 00:00:52]} 40. Bxg5 {[%clk 00:00:29]} {[%emt
00:00:09]} Kh5 {[%clk 00:00:52]} {[%emt 00:00:02]} 41. Be7 {[%clk 00:00:28]}
{[%emt 00:00:03]} Kh6 {[%clk 00:00:51]} {[%emt 00:00:03]} 42. Rh1+ {[%clk
00:00:28]} {[%emt 00:00:02]} Kg7 {[%clk 00:00:52]} 43. Rh7+ {[%clk 00:00:28]}
{[%emt 00:00:02]} Kg8 {[%clk 00:00:50]} {[%emt 00:00:04]} 44. Bxd6 {[%clk
00:00:29]} Rb1 {[%clk 00:00:42]} {[%emt 00:00:10]} 45. Rxa7 {[%clk 00:00:27]}
{[%emt 00:00:04]} b3 {[%clk 00:00:39]} {[%emt 00:00:05]} 46. Bxe5 {[%clk
00:00:23]} {[%emt 00:00:06]} b2 {[%clk 00:00:38]} {[%emt 00:00:03]} 47. Be6+
{[%clk 00:00:25]} Kf8 {[%clk 00:00:36]} {[%emt 00:00:03]} 48. Rb7 {[%clk
00:00:20]} {[%emt 00:00:07]} Re1+ {[%clk 00:00:33]} {[%emt 00:00:05]} 49. Kd5
{[%clk 00:00:21]} b1=Q {[%clk 00:00:31]} {[%emt 00:00:05]} 50. Rxb1 {[%clk
00:00:20]} {[%emt 00:00:02]} Rxb1 {[%clk 00:00:30]} {[%emt 00:00:03]} 51. Bxd4
{[%clk 00:00:20]} {[%emt 00:00:02]} Rb4 {[%clk 00:00:28]} {[%emt 00:00:04]} 52.
Bd7 {[%clk 00:00:18]} {[%emt 00:00:03]} Ke7 {[%clk 00:00:27]} {[%emt 00:00:05]}
53. Bb5 {[%clk 00:00:19]} Kd8 {[%clk 00:00:26]} {[%emt 00:00:03]} 54. Bc5
{[%clk 00:00:18]} {[%emt 00:00:02]} Rb1 {[%clk 00:00:26]} {[%emt 00:00:02]} 55.
d4 {[%clk 00:00:19]} {[%emt 00:00:01]} Kc7 {[%clk 00:00:26]} {[%emt 00:00:02]}
56. Kc4 {[%clk 00:00:16]} {[%emt 00:00:05]} Rc1+ {[%clk 00:00:27]} {[%emt
00:00:01]} 57. Kb4 {[%clk 00:00:17]} Rb1+ {[%clk 00:00:28]} {[%emt 00:00:02]}
58. Ka5 {[%clk 00:00:18]} Rf1 {[%clk 00:00:27]} {[%emt 00:00:01]} 59. Bb6+
{[%clk 00:00:16]} {[%emt 00:00:05]} Kd6 {[%clk 00:00:28]} {[%emt 00:00:01]} 60.
Bxf1 {[%clk 00:00:17]} {[%emt 00:00:01]} Kd5 {[%clk 00:00:27]} {[%emt
00:00:03]} 61. Kb5 {[%clk 00:00:17]} {[%emt 00:00:01]} Kd6 {[%clk 00:00:27]}
{[%emt 00:00:02]} 62. a5 {[%clk 00:00:19]} Kd5 {[%clk 00:00:28]} 63. Bg2 {[%clk
00:00:18]} {[%emt 00:00:02]} Ke6 {[%clk 00:00:29]} {[%emt 00:00:02]} 64. a6
{[%clk 00:00:20]} Kd7 {[%clk 00:00:29]} {[%emt 00:00:03]} 65. a7 {[%clk
00:00:21]} Ke6 {[%clk 00:00:26]} {[%emt 00:00:05]} 66. a8=Q {[%clk 00:00:18]}
{[%emt 00:00:05]} Ke7 {[%clk 00:00:27]} {[%emt 00:00:02]} 67. Qe4+ {[%clk
00:00:17]} {[%emt 00:00:04]} Kf6 {[%clk 00:00:27]} 68. Bd8+ {[%clk 00:00:17]}
{[%emt 00:00:02]} Kf7 {[%clk 00:00:25]} {[%emt 00:00:04]} 69. Qf5+ {[%clk
00:00:16]} {[%emt 00:00:03]} Ke8 {[%clk 00:00:23]} {[%emt 00:00:04]} 70. Qe6+
{[%clk 00:00:15]} {[%emt 00:00:03]} Kf8 {[%clk 00:00:24]} {[%emt 00:00:02]} 71.
Qe7+ {[%clk 00:00:14]} {[%emt 00:00:03]} Kg8 {[%clk 00:00:25]} 72. Bd5+ {[%clk
00:00:14]} Kh8 {[%clk 00:00:26]} {[%emt 00:00:01]} 73. Qf6+ {[%clk 00:00:15]}
{[%emt 00:00:01]} Kh7 {[%clk 00:00:25]} {[%emt 00:00:03]} 74. Be4+ {[%clk
00:00:15]} {[%emt 00:00:02]} Kg8 {[%clk 00:00:25]} {[%emt 00:00:03]} 75. Qg6+
{[%clk 00:00:12]} {[%emt 00:00:05]} Kf8 {[%clk 00:00:21]} {[%emt 00:00:05]} 76.
Qf6+ {[%clk 00:00:10]} {[%emt 00:00:04]} Kg8 {[%clk 00:00:21]} {[%emt
00:00:02]} 77. Bd5+ {[%clk 00:00:12]} {[%emt 00:00:01]} Kh7 {[%clk 00:00:20]}
{[%emt 00:00:02]} 78. Bg8+ {[%clk 00:00:10]} {[%emt 00:00:03]} Kxg8 {[%clk
00:00:20]} {[%emt 00:00:02]} 79. d5 {[%clk 00:00:11]} Kh7 {[%clk 00:00:19]}
{[%emt 00:00:02]} 80. d6 {[%clk 00:00:13]} Kg8 {[%clk 00:00:20]} {[%emt
00:00:01]} 81. Be7 {[%clk 00:00:11]} {[%emt 00:00:04]} Kh7 {[%clk 00:00:14]}
{[%emt 00:00:08]} 82. d7 {[%clk 00:00:11]} {[%emt 00:00:02]} Kg8 {[%clk
00:00:14]} {[%emt 00:00:03]} 83. d8=Q+ {[%clk 00:00:12]} {[%emt 00:00:01]} Kh7
{[%emt 00:00:01]} 84. Qdh8# {[%clk 00:00:12]} {[%emt 00:00:05]} 1-0

[Event "Nordstansblixten 2025"]
[Site "Nordstan, Göteborg, Sweden"]
[Date "2025.05.10"]
[Round "1.5"]
[White "Alsjo, Sigge"]
[Black "Kenani, Dariush"]
[Result "0-1"]
[TimeControl "3 minutes + 2 seconds per move from move one"]
[WhiteFideId "1794027"]
[BlackFideId "1707973"]
[WhiteElo "1539"]
[BlackElo "1933"]

1. e4 {[%clk 00:03:02]} {[%emt 00:00:02]} Nf6 {[%clk 00:02:57]} {[%emt
00:00:07]} 2. Nc3 {[%clk 00:03:02]} {[%emt 00:00:02]} d6 {[%clk 00:02:57]}
{[%emt 00:00:02]} 3. Nf3 {[%clk 00:03:03]} {[%emt 00:00:02]} g6 {[%emt
00:00:02]} 4. d4 {[%clk 00:03:04]} Bg7 {[%clk 00:02:56]} {[%emt 00:00:03]} 5.
Bc4 {[%clk 00:03:01]} {[%emt 00:00:05]} c6 {[%clk 00:02:56]} {[%emt 00:00:02]}
6. O-O {[%clk 00:02:59]} {[%emt 00:00:04]} O-O {[%clk 00:02:56]} {[%emt
00:00:02]} 7. Bg5 {[%clk 00:02:58]} {[%emt 00:00:03]} Qc7 {[%clk 00:02:51]}
{[%emt 00:00:07]} 8. Qd2 {[%clk 00:02:59]} {[%emt 00:00:02]} Re8 {[%clk
00:02:47]} {[%emt 00:00:06]} 9. e5 {[%clk 00:02:51]} {[%emt 00:00:10]} Nfd7
{[%clk 00:02:25]} {[%emt 00:00:25]} 10. exd6 {[%clk 00:02:51]} exd6 {[%clk
00:02:25]} {[%emt 00:00:02]} 11. Rfe1 {[%clk 00:02:46]} {[%emt 00:00:07]} Nf6
{[%clk 00:02:00]} {[%emt 00:00:26]} 12. Bxf6 {[%clk 00:02:43]} {[%emt
00:00:06]} Rxe1+ {[%clk 00:02:00]} 13. Rxe1 {[%clk 00:02:44]} Bxf6 {[%clk
00:02:01]} {[%emt 00:00:02]} 14. Re8+ {[%clk 00:02:29]} {[%emt 00:00:17]} Kg7
{[%clk 00:02:02]} 15. Ne4 {[%clk 00:02:22]} {[%emt 00:00:09]} Bd8 {[%clk
00:01:46]} {[%emt 00:00:16]} 16. Qf4 {[%clk 00:01:53]} {[%emt 00:00:33]} Bf5
{[%clk 00:01:28]} {[%emt 00:00:19]} 17. Nxd6 {[%clk 00:01:49]} {[%emt
00:00:07]} Qd7 {[%clk 00:01:20]} {[%emt 00:00:09]} 18. Qe5+ {[%clk 00:01:26]}
{[%emt 00:00:26]} Bf6 {[%clk 00:01:15]} {[%emt 00:00:07]} 19. Qe7 {[%clk
00:01:25]} {[%emt 00:00:02]} Bxe7 {[%clk 00:01:14]} {[%emt 00:00:04]} 20. Ne5
{[%clk 00:01:13]} {[%emt 00:00:14]} Qxd6 {[%clk 00:01:12]} {[%emt 00:00:04]}
0-1

[Event "Nordstansblixten 2025"]
[Site "Nordstan, Göteborg, Sweden"]
[Date "2025.05.10"]
[Round "2.1"]
[White "Wellevit, Tomas"]
[Black "Gustavsson, Ville"]
[Result "1-0"]
[TimeControl "3 minutes + 2 seconds per move from move one"]
[WhiteFideId "1731963"]
[BlackFideId "1792822"]
[WhiteElo "2131"]
[BlackElo "1798"]

1. e4 {[%clk 00:03:02]} {[%emt 00:07:44]} c6 {[%clk 00:03:04]} {[%emt
00:00:04]} 2. d4 {[%clk 00:03:02]} {[%emt 00:00:02]} d5 {[%clk 00:03:05]} 3.
Nd2 {[%clk 00:03:02]} {[%emt 00:00:03]} dxe4 {[%clk 00:03:05]} 4. Nxe4 {[%clk
00:03:03]} Nf6 {[%clk 00:03:06]} 5. Ng3 {[%clk 00:03:04]} h5 {[%clk 00:03:07]}
{[%emt 00:00:01]} 6. h4 {[%clk 00:03:05]} Qc7 {[%clk 00:02:19]} {[%emt
00:00:50]} 7. Nf3 {[%clk 00:03:05]} {[%emt 00:00:02]} Bg4 {[%clk 00:02:18]}
{[%emt 00:00:03]} 8. Be2 {[%clk 00:03:06]} {[%emt 00:00:01]} e6 {[%clk
00:02:17]} {[%emt 00:00:03]} 9. Ne5 {[%clk 00:03:05]} {[%emt 00:00:03]} Nbd7
{[%clk 00:02:02]} {[%emt 00:00:17]} 10. Nxg4 {[%clk 00:03:05]} {[%emt
00:00:02]} hxg4 {[%clk 00:01:59]} {[%emt 00:00:05]} 11. Bxg4 {[%clk 00:03:00]}
{[%emt 00:00:07]} Bd6 {[%clk 00:01:56]} {[%emt 00:00:05]} 12. Qf3 {[%clk
00:02:39]} {[%emt 00:00:23]} Bxg3 13. fxg3 O-O-O {[%clk 00:01:41]} {[%emt
00:00:06]} 14. Bg5 {[%clk 00:02:36]} {[%emt 00:00:05]} Qa5+ {[%clk 00:01:35]}
{[%emt 00:00:08]} 15. Bd2 {[%clk 00:02:32]} {[%emt 00:00:06]} Qb5 {[%clk
00:01:30]} {[%emt 00:00:05]} 16. O-O-O {[%clk 00:02:30]} {[%emt 00:00:06]} Nb6
{[%clk 00:01:21]} {[%emt 00:00:11]} 17. Bh3 {[%clk 00:01:53]} {[%emt 00:00:39]}
Rxd4 {[%clk 00:01:05]} {[%emt 00:00:18]} 18. Bc3 {[%clk 00:01:50]} {[%emt
00:00:05]} Ra4 {[%clk 00:00:27]} {[%emt 00:00:40]} 19. Qd3 {[%clk 00:01:23]}
{[%emt 00:00:29]} Qd5 {[%clk 00:00:15]} {[%emt 00:00:15]} 20. Qxd5 {[%clk
00:01:20]} {[%emt 00:00:05]} Nbxd5 {[%clk 00:00:15]} {[%emt 00:00:01]} 21. Bxf6
{[%clk 00:01:16]} {[%emt 00:00:06]} Nxf6 {[%clk 00:00:14]} {[%emt 00:00:03]} 22.
a3 {[%clk 00:01:14]} {[%emt 00:00:05]} Nd5 {[%clk 00:00:10]} {[%emt 00:00:06]}
23. Rhf1 {[%clk 00:01:11]} {[%emt 00:00:04]} Rf8 {[%clk 00:00:10]} {[%emt
00:00:02]} 24. Bxe6+ {[%clk 00:01:08]} {[%emt 00:01:12]} Kc7 {[%clk 00:00:00]}
{[%emt 00:00:09]} 25. Bxd5 {[%clk 00:01:10]} {[%emt 00:00:17]} cxd5 {[%clk
00:00:07]} {[%emt 00:00:02]} 26. Rxd5 {[%clk 00:01:11]} Rg4 {[%clk 00:00:08]}
{[%emt 00:00:02]} 27. Rf3 {[%clk 00:01:09]} {[%emt 00:00:04]} f6 {[%clk
00:00:08]} {[%emt 00:00:02]} 28. c3 {[%clk 00:01:04]} {[%emt 00:00:07]} Re8
{[%clk 00:00:09]} 29. Kd2 {[%clk 00:01:05]} Rge4 {[%clk 00:00:09]} {[%emt
00:00:02]} 30. Rf2 {[%clk 00:01:05]} {[%emt 00:00:02]} Re3 {[%clk 00:00:10]}
{[%emt 00:00:02]} 31. Rd3 {[%clk 00:01:07]} R3e4 {[%clk 00:00:09]} {[%emt
00:00:03]} 32. b4 {[%clk 00:01:01]} {[%emt 00:00:08]} Kc6 {[%clk 00:00:06]}
{[%emt 00:00:05]} 33. a4 {[%clk 00:01:01]} {[%emt 00:00:02]} a6 {[%clk
00:00:07]} {[%emt 00:00:01]} 34. Rd4 {[%clk 00:00:56]} {[%emt 00:00:07]} Re3
{[%clk 00:00:07]} {[%emt 00:00:02]} 35. Rf3 {[%clk 00:00:56]} Re2+ {[%clk
00:00:08]} {[%emt 00:00:01]} 36. Kd3 {[%clk 00:00:58]} Rxg2 {[%clk 00:00:09]}
{[%emt 00:00:01]} 37. Rg4 {[%clk 00:00:58]} {[%emt 00:00:02]} Re7 {[%clk
00:00:05]} {[%emt 00:00:06]} 38. Rc4+ {[%clk 00:00:59]} Kd7 {[%clk 00:00:06]}
{[%emt 00:00:02]} 39. Rd4+ {[%clk 00:00:58]} {[%emt 00:00:03]} Kc8 {[%clk
00:00:08]} 40. Kc4 {[%clk 00:00:58]} {[%emt 00:00:02]} Rge2 {[%clk 00:00:08]}
{[%emt 00:00:02]} 41. Rfd3 {[%clk 00:00:57]} {[%emt 00:00:02]} R2e3 {[%clk
00:00:09]} {[%emt 00:00:02]} 42. Rd8+ {[%clk 00:00:58]} Kc7 {[%clk 00:00:10]}
{[%emt 00:00:01]} 43. R8d7+ {[%clk 00:00:58]} {[%emt 00:00:02]} Rxd7 {[%clk
00:00:09]} {[%emt 00:00:03]} 44. Rxe3 {[%clk 00:00:59]} Kd6 {[%clk 00:00:10]}
45. Rd3+ {[%clk 00:01:00]} Ke6 {[%clk 00:00:11]} 46. Rxd7 {[%clk 00:01:01]}
Kxd7 {[%clk 00:00:13]} 47. Kd5 {[%clk 00:01:03]} b6 {[%clk 00:00:13]} {[%emt
00:00:02]} 48. c4 {[%clk 00:01:04]} g6 {[%clk 00:00:13]} {[%emt 00:00:02]} 49.
g4 {[%clk 00:01:02]} {[%emt 00:00:03]} Ke7 {[%clk 00:00:11]} {[%emt 00:00:05]}
50. c5 {[%clk 00:01:02]} {[%emt 00:00:02]} bxc5 {[%clk 00:00:10]} {[%emt
00:00:03]} 51. bxc5 {[%clk 00:01:03]} Kd7 {[%clk 00:00:11]} 52. c6+ {[%clk
00:01:04]} {[%emt 00:00:02]} Kc7 {[%clk 00:00:11]} {[%emt 00:00:01]} 53. Kc5
{[%clk 00:01:05]} a5 {[%clk 00:00:12]} {[%emt 00:00:02]} 54. Kd5 {[%clk
00:01:06]} {[%emt 00:00:01]} Kb6 {[%clk 00:00:13]} {[%emt 00:00:01]} 55. Kd6
{[%clk 00:01:07]} Kc5+ {[%clk 00:00:14]} {[%emt 00:00:02]} 56. c7+ 1-0

[Event "Nordstansblixten 2025"]
[Site "Nordstan, Göteborg, Sweden"]
[Date "2025.05.10"]
[Round "2.2"]
[White "Torres, Lucas"]
[Black "Karlsson, Stefan"]
[Result "1-0"]
[TimeControl "3 minutes + 2 seconds per move from move one"]
[WhiteFideId "1769464"]
[BlackFideId "1771183"]
[WhiteElo "1805"]
[BlackElo "2128"]

1. e4 {[%clk 00:03:03]} c5 {[%clk 00:03:03]} {[%emt 00:00:01]} 2. Nc3 {[%clk
00:03:02]} {[%emt 00:00:05]} Nc6 {[%clk 00:03:04]} 3. Bb5 {[%clk 00:03:03]} Nd4
{[%clk 00:03:02]} {[%emt 00:00:04]} 4. Nf3 {[%clk 00:03:04]} a6 {[%clk
00:03:03]} 5. Bd3 {[%clk 00:03:04]} {[%emt 00:00:02]} g6 {[%clk 00:03:03]}
{[%emt 00:00:02]} 6. Nxd4 {[%clk 00:02:46]} {[%emt 00:00:20]} cxd4 {[%clk
00:03:04]} 7. Ne2 {[%clk 00:02:47]} {[%emt 00:00:01]} Bg7 {[%clk 00:03:05]} 8.
f4 {[%clk 00:02:48]} {[%emt 00:00:01]} e6 {[%clk 00:02:40]} {[%emt 00:00:27]} 9.
O-O {[%clk 00:02:46]} {[%emt 00:00:04]} Ne7 {[%clk 00:02:41]} {[%emt 00:00:02]}
10. c3 {[%clk 00:02:17]} {[%emt 00:00:30]} Nc6 {[%clk 00:02:40]} {[%emt
00:00:03]} 11. Kh1 {[%clk 00:02:15]} {[%emt 00:00:03]} O-O {[%clk 00:02:30]}
{[%emt 00:00:12]} 12. Qe1 {[%clk 00:01:52]} {[%emt 00:00:25]} d5 {[%clk
00:02:07]} {[%emt 00:00:26]} 13. e5 {[%clk 00:01:51]} {[%emt 00:00:03]} dxc3
{[%clk 00:01:52]} {[%emt 00:00:17]} 14. dxc3 {[%clk 00:01:45]} {[%emt
00:00:08]} f6 {[%clk 00:01:50]} {[%emt 00:00:05]} 15. exf6 {[%clk 00:01:13]}
{[%emt 00:00:33]} Qxf6 {[%clk 00:01:51]} 16. Be3 {[%clk 00:01:10]} {[%emt
00:00:06]} e5 {[%clk 00:01:24]} {[%emt 00:00:30]} 17. fxe5 {[%clk 00:00:57]}
{[%emt 00:00:15]} Qxf1+ {[%clk 00:01:17]} {[%emt 00:00:09]} 18. Qxf1 {[%clk
00:00:58]} Rxf1+ {[%clk 00:01:18]} 19. Rxf1 {[%clk 00:00:59]} {[%emt 00:00:01]}
Nxe5 {[%clk 00:01:15]} {[%emt 00:00:05]} 20. Bc2 {[%clk 00:00:43]} {[%emt
00:00:18]} Bg4 {[%clk 00:00:50]} {[%emt 00:00:27]} 21. Nf4 {[%clk 00:00:33]}
{[%emt 00:00:11]} Nc4 {[%clk 00:00:49]} {[%emt 00:00:04]} 22. Bc1 {[%clk
00:00:32]} {[%emt 00:00:03]} Rf8 {[%clk 00:00:24]} {[%emt 00:00:27]} 23. h3
{[%clk 00:00:32]} {[%emt 00:00:02]} Bd7 {[%clk 00:00:12]} {[%emt 00:00:13]} 24.
Kg1 {[%clk 00:00:32]} {[%emt 00:00:02]} d4 {[%clk 00:00:09]} {[%emt 00:00:05]}
25. Bb3 {[%clk 00:00:33]} {[%emt 00:00:02]} Bb5 {[%clk 00:00:06]} {[%emt
00:00:05]} 26. a4 {[%clk 00:00:32]} {[%emt 00:00:03]} dxc3 {[%clk 00:00:04]}
{[%emt 00:00:04]} 27. axb5 {[%clk 00:00:31]} {[%emt 00:00:04]} Bd4+ {[%clk
00:00:04]} {[%emt 00:00:02]} 28. Kh1 {[%clk 00:00:30]} {[%emt 00:00:02]} axb5
{[%clk 00:00:05]} {[%emt 00:00:02]} 29. bxc3 {[%clk 00:00:30]} {[%emt
00:00:02]} Bxc3 {[%clk 00:00:04]} {[%emt 00:00:03]} 30. Rf3 {[%clk 00:00:29]}
{[%emt 00:00:03]} Bd4 {[%clk 00:00:03]} {[%emt 00:00:03]} 31. Ne6 {[%clk
00:00:28]} {[%emt 00:00:03]} Rxf3 {[%clk 00:00:04]} {[%emt 00:00:01]} 32. gxf3
{[%clk 00:00:28]} {[%emt 00:00:02]} Bb6 {[%clk 00:00:06]} 33. Kg2 {[%clk
00:00:26]} {[%emt 00:00:05]} Kf7 {[%clk 00:00:05]} {[%emt 00:00:03]} 34. Ng5+
{[%clk 00:00:25]} {[%emt 00:00:02]} Kg7 {[%clk 00:00:05]} {[%emt 00:00:02]} 35.
Ne4 {[%clk 00:00:24]} {[%emt 00:00:04]} Bd4 {[%clk 00:00:03]} {[%emt 00:00:03]}
36. Bxc4 {[%clk 00:00:17]} {[%emt 00:00:09]} bxc4 {[%emt 00:00:01]} 37. Nd6
{[%clk 00:00:17]} c3 {[%clk 00:00:03]} {[%emt 00:00:04]} 38. Nxb7 {[%clk
00:00:16]} {[%emt 00:00:03]} Kf6 {[%clk 00:00:03]} {[%emt 00:00:02]} 39. Na5
{[%clk 00:00:12]} {[%emt 00:00:06]} Ke6 {[%clk 00:00:03]} {[%emt 00:00:02]} 40.
Nb3 {[%clk 00:00:13]} {[%emt 00:00:02]} Bb6 {[%clk 00:00:00]} {[%emt 00:00:02]}
1-0